bitfinex-derivatives/quotes_BTCF0:USTF0_20250503
["timestamp","ask_amount","ask_price","bid_price","bid_amount"]
[1746270715166,0.329349,95972.0,95971.0,0.4451253]
[1746270716174,0.211349,95972.0,95971.0,0.4451253]
[1746270717779,0.211349,95972.0,95971.0,0.4056253]
[1746270718177,0.329349,95972.0,95971.0,0.4056253]
[1746270720283,0.211349,95972.0,95971.0,0.4056253]
[1746270720690,0.211349,95972.0,95971.0,0.3688253]
[1746270720891,0.211349,95972.0,95971.0,0.3167398]
[1746270721189,0.2083441,95971.0,95970.0,0.3608]
[1746270721390,0.2874441,95971.0,95970.0,0.3608]
[1746270722089,0.4054441,95971.0,95970.0,0.3608]
[1746270722290,0.4074441,95971.0,95970.0,0.3608]
[1746270722794,0.4084441,95971.0,95970.0,0.3608]
[1746270723194,0.4084441,95971.0,95970.0,0.5691463]
[1746270725494,0.4084441,95971.0,95970.0,0.3608]
[1746270726089,0.2083463,95970.0,95969.0,0.2083475]
[1746270726695,0.2474463,95970.0,95969.0,0.2083475]
[1746270727087,0.3654463,95970.0,95969.0,0.2083475]
[1746270727387,0.3664463,95970.0,95969.0,0.2083475]
[1746270728797,0.3684463,95970.0,95969.0,0.2083475]
[1746270731796,0.4069463,95970.0,95969.0,0.2083475]
[1746270732989,0.4069463,95970.0,95969.0,0.2452475]
[1746270735194,0.2889463,95970.0,95969.0,0.2452475]
[1746270735581,0.2498463,95970.0,95969.0,0.2452475]
[1746270736798,0.0415,95970.0,95969.0,0.2452475]
[1746270736998,0.2498463,95970.0,95969.0,0.2452475]
[1746270738299,0.003,95970.0,95969.0,0.2452475]
[1746270738600,0.2113463,95970.0,95969.0,0.2452475]
[1746270739693,0.003,95970.0,95969.0,0.2452475]
[1746270740088,0.2113463,95970.0,95969.0,0.2452475]
[1746270742601,0.003,95970.0,95969.0,0.2452475]
[1746270743900,0.003,95970.0,95969.0,0.2552475]
[1746270744099,0.003,95970.0,95969.0,0.2752475]
[1746270744996,0.003,95970.0,95969.0,0.2452475]
[1746270746196,0.003,95970.0,95969.0,0.3552475]
[1746270746603,0.003,95970.0,95969.0,0.44343296]
[1746270746804,0.003,95970.0,95969.0,1.94343296]
[1746270746999,0.0388,95977.0,95973.0,0.0520845]
[1746270747196,0.0388,95977.0,95976.0,0.5691333]
[1746270748108,0.0398,95977.0,95976.0,0.5691333]
[1746270748294,0.0418,95977.0,95976.0,0.5691333]
[1746270748703,0.2501321,95977.0,95976.0,0.5691333]
[1746270749911,0.2501321,95977.0,95976.0,0.5701333]
[1746270754812,0.2501321,95977.0,95976.0,0.2093333]
[1746270755015,0.2501321,95977.0,95976.0,0.5701333]
[1746270759106,0.3681321,95977.0,95976.0,0.5701333]
[1746270760219,0.2501321,95977.0,95976.0,0.5701333]
[1746270761111,0.3681321,95977.0,95976.0,0.5701333]
[1746270765516,0.3681321,95977.0,95976.0,0.2093333]
[1746270765722,0.3681321,95977.0,95976.0,0.5701333]
[1746270780349,0.3681321,95977.0,95976.0,0.2093333]
[1746270780539,0.3681321,95977.0,95976.0,0.5701333]
[1746270780742,0.36031734,95977.0,95976.0,0.58564772]
[1746270781551,0.36031734,95977.0,95976.0,0.5701333]
[1746270783150,0.24231734,95977.0,95976.0,0.5701333]
[1746270784050,0.36031734,95977.0,95976.0,0.5701333]
[1746270786352,0.36031734,95977.0,95976.0,0.58564262]
[1746270786951,0.36031734,95977.0,95976.0,0.5701333]
[1746270790756,0.36031734,95977.0,95976.0,0.2093333]
[1746270790963,0.36031734,95977.0,95976.0,0.5701333]
[1746270791355,0.15198524,95977.0,95976.0,0.5701333]
[1746270791567,0.07925929,95983.0,95982.0,0.2083203]
[1746270791863,0.28757739,95983.0,95982.0,0.2283203]
[1746270792060,0.40557739,95983.0,95982.0,0.2283203]
[1746270792359,0.40557739,95983.0,95982.0,0.2083203]
[1746270792565,0.40557739,95983.0,95982.0,0.2815203]
[1746270793064,0.44367739,95983.0,95982.0,0.2815203]
[1746270793455,0.3644181,95983.0,95982.0,0.2815203]
[1746270793660,0.3664181,95983.0,95982.0,0.2865203]
[1746270795761,0.3664181,95983.0,95982.0,0.0782]
[1746270797759,0.3664181,95983.0,95982.0,0.2865203]
[1746270803570,0.4010181,95983.0,95982.0,0.2865203]
[1746270848392,0.3664181,95983.0,95982.0,0.2865203]
[1746270871310,0.3664181,95983.0,95982.0,0.2495203]
[1746270871507,0.4037181,95983.0,95982.0,0.2495203]
[1746270888637,0.3664181,95983.0,95982.0,0.2495203]
[1746270888939,0.1581,95983.0,95982.0,0.2495203]
[1746270889536,0.3664181,95983.0,95982.0,0.2495203]
[1746270890241,0.2484181,95983.0,95982.0,0.2495203]
[1746270891137,0.3664181,95983.0,95982.0,0.2495203]
[1746270892241,0.2484181,95983.0,95982.0,0.2495203]
[1746270895250,0.2484181,95983.0,95982.0,0.2595203]
[1746270899951,0.0401,95983.0,95982.0,0.2595203]
[1746270900151,0.2484181,95983.0,95982.0,0.2595203]
[1746270902363,0.2484181,95983.0,95982.0,0.2495203]
[1746270903152,0.2103181,95983.0,95982.0,0.2495203]
[1746270905152,0.002,95983.0,95982.0,0.2495203]
[1746270905352,0.2103181,95983.0,95982.0,0.2495203]
[1746270906463,0.002,95983.0,95982.0,0.2495203]
[1746270906661,0.2103181,95983.0,95982.0,0.2495203]
[1746270909063,0.002,95983.0,95982.0,0.2595203]
[1746270909265,0.032,95983.0,95982.0,0.2595203]
[1746270909959,0.2403181,95983.0,95982.0,0.2595203]
[1746270910359,0.2403181,95983.0,95982.0,0.2495203]
[1746270910759,0.2732181,95983.0,95982.0,0.2495203]
[1746270911066,0.3912181,95983.0,95982.0,0.2495203]
[1746270949587,0.3912181,95983.0,95982.0,0.0412]
[1746270949789,0.3912181,95983.0,95982.0,0.2495203]
[1746270962795,0.3912181,95983.0,95982.0,0.0412]
[1746270975206,0.3912181,95983.0,95982.0,0.2495203]
[1746270980617,0.3583181,95983.0,95982.0,0.2495203]
[1746270986728,0.3283181,95983.0,95982.0,0.2495203]
[1746270994027,0.3283181,95983.0,95982.0,0.2800203]
[1746270994224,0.2103181,95983.0,95982.0,0.2800203]
[1746270999144,0.3283181,95983.0,95982.0,0.2800203]
[1746271016747,0.3616181,95983.0,95982.0,0.2800203]
[1746271021353,0.3616181,95983.0,95982.0,0.2495203]
[1746271021858,0.3918181,95983.0,95982.0,0.2495203]
[1746271023565,0.3918181,95983.0,95982.0,0.2133203]
[1746271024257,0.3918181,95983.0,95982.0,0.005]
[1746271024649,0.3918181,95983.0,95982.0,0.2133203]
[1746271024853,0.3918181,95983.0,95982.0,0.2437203]
[1746271026162,0.3918181,95983.0,95982.0,0.0354]
[1746271027561,0.3918181,95983.0,95982.0,0.2437203]
[1746271030552,0.3918181,95983.0,95982.0,0.0354]
[1746271030955,0.3918181,95983.0,95982.0,0.2437203]
[1746271034267,0.3918181,95983.0,95982.0,0.0354]
[1746271034764,0.3918181,95983.0,95982.0,0.2437203]
[1746271034969,0.3918181,95983.0,95982.0,0.005]
[1746271035163,0.7526181,95983.0,95982.0,0.005]
[1746271036461,0.2083355,95975.0,95974.0,0.03208324]
[1746271036660,0.2083485,95969.0,95968.0,0.212201]
[1746271037168,0.4305485,95969.0,95968.0,0.212201]
[1746271037654,0.4942485,95969.0,95968.0,0.212201]
[1746271037859,0.4962485,95969.0,95968.0,0.003]
[1746271039460,0.4972485,95969.0,95968.0,0.003]
[1746271048173,0.3930485,95969.0,95968.0,0.003]
[1746271050377,0.3599485,95969.0,95968.0,0.003]
[1746271050565,0.3293485,95969.0,95968.0,0.2113506]
[1746271050964,0.3293485,95969.0,95968.0,0.003]
[1746271051169,0.2113485,95969.0,95968.0,0.003]
[1746271051368,0.2113485,95969.0,95968.0,0.0664]
[1746271052174,0.3293485,95969.0,95968.0,0.0664]
[1746271053274,0.2113485,95969.0,95968.0,0.0664]
[1746271054273,0.3293485,95969.0,95968.0,0.0664]
[1746271055273,0.2113485,95969.0,95968.0,0.0664]
[1746271056274,0.3293485,95969.0,95968.0,0.0664]
[1746271058274,0.2113485,95969.0,95968.0,0.0664]
[1746271059875,0.2103485,95969.0,95968.0,0.0664]
[1746271066281,0.3283485,95969.0,95968.0,0.0664]
[1746271068181,0.2103485,95969.0,95968.0,0.0664]
[1746271083089,0.2103485,95969.0,95968.0,0.1844]
[1746271083489,0.2103485,95969.0,95968.0,0.3927506]
[1746271083684,0.003,95969.0,95968.0,0.4027506]
[1746271085382,0.003,95969.0,95968.0,1.9027506]
[1746271086697,0.2113485,95969.0,95968.0,1.9027506]
[1746271086888,0.003,95969.0,95968.0,1.9027506]
[1746271088900,0.003,95969.0,95968.0,1.91419905]
[1746271089897,0.003,95969.0,95968.0,1.9027506]
[1746271093803,0.003,95969.0,95968.0,2.2635506]
[1746271094195,0.0326,95980.0,95976.0,0.0520828]
[1746271094395,0.0326,95980.0,95979.0,0.5691268]
[1746271094599,0.2604047,95982.0,95981.0,0.2083203]
[1746271094804,0.2909047,95982.0,95981.0,0.2083203]
[1746271096207,0.2919047,95982.0,95981.0,0.2083203]
[1746271097904,0.2929047,95982.0,95981.0,0.2123203]
[1746271104208,0.4109047,95982.0,95981.0,0.2123203]
[1746271112206,0.4109047,95982.0,95981.0,0.2455203]
[1746271113410,0.4109047,95982.0,95981.0,0.2610467]
[1746271113615,0.40309028,95982.0,95981.0,0.2610467]
[1746271113808,0.40309028,95982.0,95981.0,0.27647189]
[1746271114719,0.40309028,95982.0,95981.0,0.27647235]
[1746271117412,0.40309028,95982.0,95981.0,0.63727235]
[1746271118214,0.40309028,95982.0,95981.0,0.63732279]
[1746271119811,0.40309028,95982.0,95981.0,0.6218467]
[1746271120619,0.40309028,95982.0,95981.0,0.2610467]
[1746271120918,0.40309028,95982.0,95981.0,0.6218467]
[1746271122320,0.40309028,95982.0,95981.0,0.2610467]
[1746271122619,0.40309028,95982.0,95981.0,0.6218467]
[1746271123909,0.39527586,95982.0,95981.0,0.6218467]
[1746271124111,0.39527586,95982.0,95981.0,0.6526467]
[1746271125318,0.39527586,95982.0,95981.0,0.6371203]
[1746271132230,0.39527586,95982.0,95981.0,0.65263271]
[1746271132733,0.3283246,95982.0,95981.0,0.65263271]
[1746271134343,0.32051024,95982.0,95981.0,0.65263271]
[1746271137727,0.32051024,95982.0,95981.0,0.6371203]
[1746271138040,0.32051024,95982.0,95981.0,0.65266637]
[1746271139542,0.32051024,95982.0,95981.0,0.6526633]
[1746271143245,0.12,95982.0,95981.0,0.6526633]
[1746271143743,0.3283203,95982.0,95981.0,0.6526633]
[1746271144342,0.002,95982.0,95981.0,0.6526633]
[1746271144845,0.2331049,95983.0,95982.0,0.2083203]
[1746271145040,0.0247857,95983.0,95982.0,0.2083203]
[1746271145247,0.07925929,95989.0,95982.0,0.1159799]
[1746271145433,0.07925929,95989.0,95988.0,0.2083072]
[1746271145638,0.03313275,96006.0,96005.0,0.2082704]
[1746271145839,0.00774059,96019.0,96015.0,0.2082487]
[1746271146142,0.2082188,96029.0,96024.0,0.2082291]
[1746271146339,0.0312,96034.0,96024.0,0.6590291]
[1746271146340,0.0520536,96031.0,96024.0,0.6590291]
[1746271146532,0.0520536,96031.0,96024.0,2.1590291]
[1746271146736,0.0520536,96031.0,96024.0,2.2542291]
[1746271147140,0.0312,96034.0,96024.0,2.2542291]
[1746271147448,0.18436698,96035.0,96034.0,0.2082075]
[1746271147648,0.18436698,96035.0,96034.0,0.6590075]
[1746271148039,0.18436698,96035.0,96034.0,0.66668011]
[1746271148348,0.18436698,96035.0,96034.0,0.72928011]
[1746271149039,0.18436698,96035.0,96034.0,2.0134]
[1746271149245,0.39257228,96035.0,96034.0,2.1946475]
[1746271149443,0.45587228,96035.0,96034.0,2.1946475]
[1746271149638,0.46287228,96035.0,96034.0,2.1956475]
[1746271149839,0.2785053,96035.0,96034.0,2.1956475]
[1746271150039,0.0703,96035.0,96034.0,2.1956475]
[1746271150245,0.3965053,96035.0,96034.0,2.1956475]
[1746271150943,0.3965053,96035.0,96034.0,2.1641475]
[1746271151147,0.3985053,96035.0,96034.0,2.1641475]
[1746271153551,0.3985053,96035.0,96034.0,1.8033475]
[1746271156449,0.3985053,96035.0,96034.0,1.7403075]
[1746271156654,0.3985053,96035.0,96034.0,1.7092075]
[1746271157954,0.3985053,96035.0,96034.0,1.501]
[1746271158155,0.2082291,96024.0,96011.0,0.3608]
[1746271158357,0.2082291,96024.0,96018.0,0.2082414]
[1746271158551,0.2082291,96024.0,96023.0,1.8608]
[1746271158947,0.2703291,96024.0,96023.0,1.8608]
[1746271159146,0.3883291,96024.0,96023.0,0.3608]
[1746271159350,0.3943291,96024.0,96023.0,0.3618]
[1746271160552,0.3943291,96024.0,96023.0,0.5700313]
[1746271163058,0.3943291,96024.0,96023.0,0.3618]
[1746271163251,0.3943291,96024.0,96023.0,0.5700313]
[1746271163656,0.3943291,96024.0,96023.0,0.3618]
[1746271164455,0.70846911,96024.0,96023.0,0.001]
[1746271164657,0.70846911,96024.0,96004.0,0.0319]
[1746271164658,0.2082638,96008.0,96004.0,0.0319]
[1746271165153,0.3262638,96008.0,95996.0,0.0332]
[1746271165353,0.3262638,96008.0,96000.0,0.2082803]
[1746271165558,0.3262638,96008.0,95999.0,0.0520707]
[1746271165762,0.3873638,96008.0,95999.0,1.5520707]
[1746271166063,0.3903638,96008.0,96007.0,0.00256238]
[1746271166557,0.3903638,96008.0,96007.0,0.00556238]
[1746271167260,0.3903638,96008.0,96007.0,0.00256238]
[1746271167760,0.3933638,96008.0,96007.0,0.00156238]
[1746271183666,0.3933638,96008.0,96007.0,0.03406238]
[1746271183866,0.3933638,96008.0,96007.0,0.06596238]
[1746271189178,0.124,96008.0,96007.0,0.63502838]
[1746271189664,0.0520532,96032.0,96027.0,0.2082205]
[1746271189869,0.2082205,96028.0,96027.0,0.2082205]
[1746271191063,0.3262205,96028.0,96027.0,0.2082205]
[1746271191774,0.3262205,96028.0,96027.0,0.2092205]
[1746271192375,0.3302205,96028.0,96027.0,0.2092205]
[1746271192573,0.3392205,96028.0,96027.0,0.2092205]
[1746271199980,0.131,96028.0,96027.0,0.2092205]
[1746271200180,0.013,96028.0,96027.0,0.2092205]
[1746271200380,0.013,96028.0,96027.0,0.5700205]
[1746271201174,0.131,96028.0,96027.0,0.5700205]
[1746271201475,0.3392205,96028.0,96027.0,0.5700205]
[1746271201978,0.131,96028.0,96027.0,0.5700205]
[1746271202175,0.131,96028.0,96027.0,0.6326205]
[1746271202570,0.131,96028.0,96027.0,0.6726205]
[1746271202766,0.131,96028.0,96027.0,2.1726205]
[1746271203177,0.013,96028.0,96027.0,2.1726205]
[1746271203576,0.001,96036.0,96035.0,0.2082053]
[1746271203771,0.001,96036.0,96035.0,0.5690053]
[1746271204173,0.119,96036.0,96035.0,0.5690053]
[1746271204376,0.119,96036.0,96035.0,0.6339053]
[1746271205178,0.125,96036.0,96035.0,0.6339053]
[1746271205381,0.132,96036.0,96035.0,0.6349053]
[1746271205983,0.132,96036.0,96035.0,0.6449053]
[1746271206785,0.132,96036.0,96035.0,2.1449053]
[1746271210792,0.3402031,96036.0,96035.0,0.6025053]
[1746271211885,0.4012031,96036.0,96035.0,0.6025053]
[1746271212876,0.4012031,96036.0,96035.0,0.3618]
[1746271215183,0.4012031,96036.0,96035.0,0.5700053]
[1746271215489,0.4012031,96036.0,96035.0,0.3618]
[1746271215791,0.4012031,96036.0,96035.0,0.001]
[1746271218692,0.4012031,96036.0,96035.0,0.2092053]
[1746271219593,0.4012031,96036.0,96035.0,0.001]
[1746271224492,0.4012031,96036.0,96035.0,0.0315]
[1746271227397,0.4012031,96036.0,96035.0,0.001]
[1746271230093,0.4012031,96036.0,96035.0,0.031]
[1746271230902,0.4012031,96036.0,96035.0,0.2392053]
[1746271233099,0.4012031,96036.0,96035.0,0.031]
[1746271237501,0.4012031,96036.0,96035.0,0.2392053]
[1746271237697,0.4012031,96036.0,96035.0,0.031]
[1746271243404,0.4012031,96036.0,96035.0,0.0614]
[1746271246403,0.4012031,96036.0,96035.0,0.2696053]
[1746271260635,0.3707031,96036.0,96035.0,0.2696053]
[1746271260927,0.34037538,96036.0,96035.0,0.2696053]
[1746271265025,0.13217228,96036.0,96035.0,0.2696053]
[1746271265235,0.13217228,96036.0,96035.0,0.6404053]
[1746271266420,0.34037538,96036.0,96035.0,0.6404053]
[1746271266821,0.34037538,96036.0,96035.0,0.6304053]
[1746271281229,0.34037538,96036.0,96035.0,0.6904053]
[1746271281832,0.13217228,96036.0,96035.0,2.1904053]
[1746271282034,0.2081902,96042.0,96041.0,0.2081901]
[1746271283138,0.3261902,96042.0,96041.0,0.2081901]
[1746271283339,0.3351902,96042.0,96041.0,0.2091901]
[1746271284240,0.3381902,96042.0,96041.0,0.2091901]
[1746271288036,0.3381902,96042.0,96041.0,0.2291901]
[1746271288231,0.3381902,96042.0,96041.0,0.2091901]
[1746271289538,0.0324,96047.0,96044.0,0.052046]
[1746271289737,0.208181,96050.0,96049.0,0.2081663]
[1746271290235,0.358881,96050.0,96049.0,0.2081663]
[1746271290838,0.363881,96050.0,96049.0,0.2081663]
[1746271292238,0.2081836,96045.0,96044.0,0.2602296]
[1746271292433,0.2081858,96044.0,96043.0,0.3608]
[1746271292635,0.2081901,96042.0,96037.0,0.2237206]
[1746271292840,0.2081901,96042.0,96037.0,0.01552]
[1746271293242,0.2081988,96038.0,96037.0,0.01552]
[1746271293652,0.2082075,96034.0,96033.0,0.15807473]
[1746271294144,0.3262075,96034.0,96033.0,0.15807473]
[1746271294348,0.3262075,96034.0,96033.0,0.15819986]
[1746271294552,0.39846572,96034.0,96033.0,0.15819986]
[1746271295234,0.39946572,96034.0,96033.0,0.15819986]
[1746271296148,0.39946572,96034.0,96033.0,0.00012513]
[1746271297248,0.3883075,96034.0,96033.0,0.00012513]
[1746271301754,0.4188075,96034.0,96033.0,0.20833473]
[1746271302250,0.3883075,96034.0,96033.0,0.20833473]
[1746271302845,0.3883075,96034.0,96033.0,0.24133473]
[1746271304351,0.3582075,96034.0,96033.0,0.24133473]
[1746271304849,0.3272075,96034.0,96033.0,0.24133473]
[1746271309362,0.119,96034.0,96033.0,0.28133473]
[1746271315559,0.0825482,96041.0,96033.0,0.28133473]
[1746271315560,0.0306,96045.0,96038.0,0.0520492]
[1746271315857,0.20828266,96042.0,96041.0,0.5689923]
[1746271316057,0.11809256,96042.0,96041.0,0.5689923]
[1746271316759,0.12009256,96042.0,96041.0,0.5689923]
[1746271317460,0.12309256,96042.0,96041.0,0.5689923]
[1746271317660,0.12309256,96042.0,96041.0,2.0689923]
[1746271318154,0.00509256,96042.0,96041.0,2.0689923]
[1746271320264,0.12309256,96042.0,96041.0,2.0689923]
[1746271320963,0.12109256,96042.0,96041.0,2.0689923]
[1746271321165,0.12309256,96042.0,96041.0,2.0689923]
[1746271322060,0.12009256,96042.0,96041.0,2.0689923]
[1746271322264,0.12209256,96042.0,96041.0,2.0689923]
[1746271323057,0.12209256,96042.0,96041.0,2.0789923]
[1746271323259,0.00409256,96042.0,96041.0,2.0789923]
[1746271324167,0.12209256,96042.0,96041.0,2.0789923]
[1746271326470,0.12209256,96042.0,96041.0,2.08979499]
[1746271327763,0.12,96042.0,96041.0,2.19391498]
[1746271327976,0.2602142,96055.0,96054.0,0.2081554]
[1746271329079,0.3782142,96055.0,96054.0,0.2081554]
[1746271329281,0.3862142,96055.0,96054.0,0.2396554]
[1746271329673,0.4382566,96055.0,96054.0,0.2396554]
[1746271330073,0.4699566,96055.0,96054.0,0.2396554]
[1746271330374,0.1577,96055.0,96041.0,0.3608]
[1746271330679,0.0520485,96041.0,96040.0,0.2081828]
[1746271331279,0.118,96041.0,96040.0,0.2602298]
[1746271331584,0.118,96041.0,96040.0,0.3122771]
[1746271331774,0.118,96041.0,96040.0,0.3643248]
[1746271331974,0.1813,96041.0,96040.0,0.3643248]
[1746271332269,0.1813,96041.0,96040.0,0.3973248]
[1746271332470,0.3904923,96041.0,96040.0,0.2932298]
[1746271332781,0.3914923,96041.0,96040.0,0.2081828]
[1746271352991,0.3914923,96041.0,96040.0,0.2409828]
[1746271365897,0.3281923,96041.0,96040.0,0.2409828]
[1746271367900,0.3281923,96041.0,96040.0,0.0328]
[1746271368802,0.3281923,96041.0,96040.0,0.240983]
[1746271371102,0.3281923,96041.0,96040.0,0.270983]
[1746271373105,0.3281923,96041.0,96040.0,0.240983]
[1746271374102,0.12,96041.0,96040.0,0.240983]
[1746271374404,0.3281923,96041.0,96040.0,0.240983]
[1746271374793,0.12,96041.0,96040.0,0.240983]
[1746271374995,0.3281923,96041.0,96040.0,0.240983]
[1746271375504,0.12,96041.0,96040.0,0.280983]
[1746271382601,0.12,96041.0,96040.0,1.780983]
[1746271390011,0.3281923,96041.0,96040.0,1.780983]
[1746271390814,0.1516,96041.0,96040.0,1.780983]
[1746271391216,0.1826,96041.0,96040.0,1.780983]
[1746271392421,0.1516,96041.0,96040.0,1.780983]
[1746271393819,0.12,96041.0,96040.0,1.780983]
[1746271396120,0.12,96041.0,96040.0,1.54]
[1746271396319,0.12,96041.0,96040.0,0.248183]
[1746271397223,0.12,96041.0,96040.0,0.280683]
[1746271398613,0.12,96041.0,96040.0,1.780683]
[1746271401322,0.12,96041.0,96040.0,1.93875773]
[1746271401522,0.1513,96041.0,96040.0,1.93875773]
[1746271403411,0.1503,96041.0,96040.0,1.93875773]
[1746271403915,0.1493,96041.0,96040.0,1.93875773]
[1746271405423,0.1493,96041.0,96040.0,1.780683]
[1746271409129,0.118,96041.0,96040.0,1.780683]
[1746271409330,0.118,96041.0,96040.0,1.5325]
[1746271409629,0.0325,96051.0,96050.0,0.2081728]
[1746271409829,0.0325,96051.0,96050.0,0.5689728]
[1746271410330,0.1505,96051.0,96050.0,0.5689728]
[1746271410527,0.1505,96051.0,96050.0,0.5990728]
[1746271411426,0.1525,96051.0,96050.0,0.5990728]
[1746271411731,0.1545,96051.0,96050.0,0.5990728]
[1746271413731,0.1545,96051.0,96050.0,0.60966296]
[1746271414834,0.1545,96051.0,96050.0,0.64026296]
[1746271415134,0.1545,96051.0,96050.0,0.69026296]
[1746271419842,0.122,96051.0,96050.0,0.69026296]
[1746271423551,0.1526,96051.0,96050.0,0.69026296]
[1746271424349,0.1526,96051.0,96050.0,0.6796728]
[1746271425857,0.1526,96051.0,96050.0,0.6902752]
[1746271426450,0.1506,96051.0,96050.0,0.6902752]
[1746271426658,0.1526,96051.0,96050.0,0.6902752]
[1746271433263,0.1526,96051.0,96050.0,0.6796728]
[1746271433461,0.3607706,96051.0,96050.0,0.5689728]
[1746271444876,0.3607706,96051.0,96050.0,0.5989728]
[1746271445075,0.1526,96051.0,96050.0,0.5989728]
[1746271445567,0.1526,96051.0,96050.0,0.6621728]
[1746271456686,0.1526,96051.0,96050.0,0.6292728]
[1746271459090,0.1526,96051.0,96050.0,0.6609728]
[1746271465185,0.3607706,96051.0,96050.0,0.6609728]
[1746271465598,0.3607706,96051.0,96050.0,0.6309728]
[1746271468593,0.3607706,96051.0,96050.0,0.5689728]
[1746271469192,0.3607706,96051.0,96050.0,0.6011728]
[1746271480796,0.3607706,96051.0,96050.0,0.6342728]
[1746271489313,0.1526,96051.0,96050.0,0.6342728]
[1746271490314,0.1526,96051.0,96050.0,0.2734728]
[1746271491114,0.1834,96051.0,96050.0,0.2734728]
[1746271495616,0.1526,96051.0,96050.0,0.2934728]
[1746271500627,0.3607706,96051.0,96050.0,0.2934728]
[1746271501422,0.1526,96051.0,96050.0,0.2934728]
[1746271504523,0.1526,96051.0,96050.0,0.0853]
[1746271504722,0.1526,96051.0,96050.0,0.2934728]
[1746271505721,0.1526,96051.0,96050.0,1.7734728]
[1746271505916,0.1526,96051.0,96050.0,1.7081728]
[1746271506118,0.3607706,96051.0,96050.0,1.7081728]
[1746271507427,0.2081793,96047.0,96046.0,0.17468306]
[1746271507625,0.2081793,96047.0,96046.0,0.15917306]
[1746271507828,0.2081793,96047.0,96046.0,0.36735446]
[1746271508126,0.3261793,96047.0,96046.0,0.2081814]
[1746271508325,0.3890793,96047.0,96046.0,0.2081814]
[1746271508822,0.3900793,96047.0,96046.0,0.2081814]
[1746271509029,0.3910793,96047.0,96046.0,0.2081814]
[1746271511726,0.2081814,96046.0,96045.0,0.15917306]
[1746271511931,0.2081879,96043.0,96042.0,0.2236895]
[1746271512119,0.6869879,96043.0,96042.0,0.2236895]
[1746271512320,0.6869879,96043.0,96042.0,0.2081895]
[1746271512620,0.69760175,96043.0,96042.0,0.2081895]
[1746271513627,0.2081966,96039.0,96038.0,0.0155]
[1746271513829,0.2081966,96039.0,96038.0,0.2236988]
[1746271514029,0.2081966,96039.0,96038.0,0.2081988]
[1746271514328,0.3261966,96039.0,96038.0,0.2081988]
[1746271514527,0.3915966,96039.0,96038.0,0.2081988]
[1746271515920,0.3935966,96039.0,96038.0,0.2081988]
[1746271516116,0.3945966,96039.0,96038.0,0.2081988]
[1746271523333,0.2081988,96038.0,96037.0,0.0328]
[1746271523535,0.2081988,96038.0,96037.0,0.0633]
[1746271523733,0.2707988,96038.0,96037.0,0.0633]
[1746271524128,0.3887988,96038.0,96037.0,0.271501]
[1746271524628,0.3907988,96038.0,96037.0,0.271501]
[1746271525235,0.3907988,96038.0,96037.0,0.241001]
[1746271525928,0.3917988,96038.0,96037.0,0.241001]
[1746271533435,0.3917988,96038.0,96037.0,0.0328]
[1746271533639,0.3917988,96038.0,96035.0,0.0323]
[1746271533640,0.2082031,96036.0,96035.0,0.0323]
[1746271534139,0.3262031,96036.0,96035.0,0.0323]
[1746271534731,0.3272031,96036.0,96035.0,0.0323]
[1746271535029,0.3272031,96036.0,96035.0,0.2405053]
[1746271535333,0.3282031,96036.0,96035.0,0.2405053]
[1746271536439,0.3282031,96036.0,96035.0,0.2729053]
[1746271547453,0.3282031,96036.0,96035.0,0.0647]
[1746271548256,0.3282031,96036.0,96035.0,0.2729053]
[1746271556052,0.3902031,96036.0,96035.0,0.2729053]
[1746271556554,0.3902031,96036.0,96035.0,0.0647]
[1746271557155,0.3902031,96036.0,96035.0,0.0975]
[1746271572158,0.3902031,96036.0,96035.0,0.3057053]
[1746271573562,0.3902031,96036.0,96035.0,0.0975]
[1746271574974,0.2082053,96035.0,96034.0,0.147342]
[1746271575373,0.2082183,96030.0,96029.0,0.2082183]
[1746271575571,0.2082183,96030.0,96029.0,0.2182183]
[1746271575769,0.2392183,96030.0,96029.0,0.2182183]
[1746271576275,0.3572183,96030.0,96029.0,0.2182183]
[1746271578166,0.3572183,96030.0,96029.0,0.3148183]
[1746271588884,0.3875183,96030.0,96029.0,0.3148183]
[1746271599901,0.3875183,96030.0,96029.0,0.2824183]
[1746271605507,0.3875183,96030.0,96029.0,0.2507183]
[1746271605709,0.4207183,96030.0,96029.0,0.2507183]
[1746271607304,0.3875183,96030.0,96029.0,0.2840183]
[1746271613008,0.3875183,96030.0,96029.0,0.2740183]
[1746271639324,0.3875183,96030.0,96029.0,0.0658]
[1746271639624,0.3875183,96030.0,96029.0,0.2740183]
[1746271646525,0.3875183,96030.0,96029.0,0.2840183]
[1746271657732,0.1793,96030.0,96029.0,0.2840183]
[1746271658637,0.3875161,96030.0,96029.0,0.2840183]
[1746271670648,0.3875161,96030.0,96029.0,0.2740183]
[1746271682962,0.3875161,96030.0,96029.0,0.6348183]
[1746271685773,0.3875161,96030.0,96029.0,0.2740183]
[1746271686075,0.3875161,96030.0,96029.0,0.6348183]
[1746271686771,0.3875161,96030.0,96029.0,0.2740183]
[1746271686969,0.3875161,96030.0,96029.0,0.6348183]
[1746271688772,0.3875161,96030.0,96029.0,0.2740183]
[1746271689071,0.3875161,96030.0,96029.0,0.6348183]
[1746271691868,0.3875161,96030.0,96029.0,0.6015183]
[1746271692169,0.3875161,96030.0,96029.0,0.5690183]
[1746271692867,0.3875161,96030.0,96029.0,0.2082183]
[1746271693172,0.3875161,96030.0,96029.0,0.5690183]
[1746271694568,0.3875161,96030.0,96029.0,0.5790183]
[1746271695673,0.3875161,96030.0,96029.0,0.5690183]
[1746271699080,0.3875161,96030.0,96029.0,0.2082183]
[1746271701980,0.3875161,96030.0,96029.0,0.2382183]
[1746271723300,0.1793,96030.0,96029.0,0.2382183]
[1746271725396,0.149,96030.0,96029.0,0.3105183]
[1746271725703,0.118,96030.0,96029.0,0.4146543]
[1746271726000,0.118,96030.0,96029.0,2.16526216]
[1746271726207,0.0318,96038.0,96037.0,0.208201]
[1746271726499,0.0318,96038.0,96037.0,0.659001]
[1746271726901,0.0318,96038.0,96037.0,2.159001]
[1746271727097,0.1498,96038.0,96037.0,2.220001]
[1746271727800,0.1498,96038.0,96037.0,1.708201]
[1746271727996,0.1498,96038.0,96037.0,0.208201]
[1746271728202,0.3890988,96038.0,96037.0,0.208201]
[1746271729000,0.3910988,96038.0,96037.0,0.208201]
[1746271736717,0.1829,96038.0,96037.0,0.208201]
[1746271737516,0.1829,96038.0,96037.0,0.272201]
[1746271739308,0.1829,96038.0,96037.0,0.332201]
[1746271745126,0.12,96038.0,96037.0,0.332201]
[1746271752833,0.031,96041.0,96040.0,0.2081945]
[1746271753036,0.031,96041.0,96040.0,0.3081945]